[Event "Titled Tuesday Blitz May 4 2021"]
[White "Gusarov, Grigory"]
[Black "Yilmaz, Mustafa"]
[WhiteFideId "24102172"]
[BlackFideId "6302718"]
[WhiteElo "2285"]
[BlackElo "2518"]
[Result "0-1"]
[Round "03"]
[TimeControl "180+1"]
[Date "2021.05.04"]
[WhiteClock "0:00:12"]
[BlackClock "0:00:16"]

1. e4 {[%clk 0:02:59]}  c5 {[%clk 0:02:59]} 2. Nf3 {[%clk 0:02:58]}  Nc6 {[%clk 0:03:00]} 3. Bb5 {[%clk 0:02:58]}  e6 {[%clk 0:03:00]} 4. Bxc6 {[%clk 0:02:58]}  bxc6 {[%clk 0:03:00]} 5. O-O {[%clk 0:02:59]}  Qc7 {[%clk 0:02:59]} 6. b3 {[%clk 0:02:58]}  Ne7 {[%clk 0:02:56]} 7. Bb2 {[%clk 0:02:54]}  f6 {[%clk 0:02:53]} 8. d4 {[%clk 0:02:48]}  Ng6 {[%clk 0:02:47]} 9. c4 {[%clk 0:02:46]}  cxd4 {[%clk 0:02:47]} 10. Qxd4 {[%clk 0:02:44]}  Be7 {[%clk 0:02:43]} 11. Nc3 {[%clk 0:02:43]}  O-O {[%clk 0:02:42]} 12. Rad1 {[%clk 0:02:34]}  Nf4 {[%clk 0:02:37]} 13. Rfe1 {[%clk 0:02:33]}  e5 {[%clk 0:02:34]} 14. Qd2 {[%clk 0:02:31]}  d6 {[%clk 0:02:34]} 15. Ba3 {[%clk 0:02:30]}  Bg4 {[%clk 0:02:27]} 16. Bxd6 {[%clk 0:02:21]}  Bxd6 {[%clk 0:02:27]} 17. Qxd6 {[%clk 0:02:21]}  Qa5 {[%clk 0:01:48]} 18. Na4 {[%clk 0:02:21]}  Bxf3 {[%clk 0:01:20]} 19. gxf3 {[%clk 0:02:21]}  Rad8 {[%clk 0:01:15]} 20. Qc5 {[%clk 0:02:21]}  Qc7 {[%clk 0:01:13]} 21. Nc3 {[%clk 0:01:10]}  Qc8 {[%clk 0:01:12]} 22. Rxd8 {[%clk 0:00:58]}  Rxd8 {[%clk 0:01:13]} 23. Ne2 {[%clk 0:00:58]}  Nd3 {[%clk 0:01:13]} 24. Qa5 {[%clk 0:00:58]}  Nxe1 {[%clk 0:00:54]} 25. Qxe1 {[%clk 0:00:59]}  Qh3 {[%clk 0:00:54]} 26. Ng3 {[%clk 0:00:59]}  h5 {[%clk 0:00:53]} 27. Qe2 {[%clk 0:00:57]}  g6 {[%clk 0:00:53]} 28. c5 {[%clk 0:00:56]}  Qd7 {[%clk 0:00:47]} 29. Qc4+ {[%clk 0:00:55]}  Kg7 {[%clk 0:00:48]} 30. h4 {[%clk 0:00:46]}  Qd1+ {[%clk 0:00:40]} 31. Kg2 {[%clk 0:00:46]}  Rd3 {[%clk 0:00:39]} 32. Qe6 {[%clk 0:00:15]}  Qxf3+ {[%clk 0:00:39]} 33. Kg1 {[%clk 0:00:16]}  Rd1+ {[%clk 0:00:38]} 34. Nf1 {[%clk 0:00:16]}  Qg4+ {[%clk 0:00:35]} 35. Qxg4 {[%clk 0:00:16]}  hxg4 {[%clk 0:00:36]} 36. Kg2 {[%clk 0:00:17]}  Rd4 {[%clk 0:00:30]} 37. f3 {[%clk 0:00:16]}  f5 {[%clk 0:00:21]} 38. exf5 {[%clk 0:00:15]}  gxf5 {[%clk 0:00:20]} 39. fxg4 {[%clk 0:00:16]}  Rxg4+ {[%clk 0:00:21]} 40. Kh3 {[%clk 0:00:16]}  Kf6 {[%clk 0:00:21]} 41. Ne3 {[%clk 0:00:15]}  Rd4 {[%clk 0:00:21]} 42. Nc4 {[%clk 0:00:16]}  Rd3+ {[%clk 0:00:20]} 43. Kg2 {[%clk 0:00:15]}  Rd5 {[%clk 0:00:21]} 44. b4 {[%clk 0:00:15]}  Rd4 {[%clk 0:00:21]} 45. Na5 {[%clk 0:00:16]}  Rxb4 {[%clk 0:00:20]} 46. Nxc6 {[%clk 0:00:16]}  Rxh4 {[%clk 0:00:20]} 47. Nxa7 {[%clk 0:00:16]}  Ra4 {[%clk 0:00:20]} 48. Nb5 {[%clk 0:00:15]}  Rxa2+ {[%clk 0:00:20]} 49. Kf3 {[%clk 0:00:16]}  Ra5 {[%clk 0:00:20]} 50. Nd6 {[%clk 0:00:14]}  Rxc5 {[%clk 0:00:19]} 51. Ne8+ {[%clk 0:00:14]}  Kf7 {[%clk 0:00:16]} 52. Nd6+ {[%clk 0:00:15]}  Ke6 {[%clk 0:00:17]} 53. Nb7 {[%clk 0:00:11]}  Rc3+ {[%clk 0:00:16]} 54. Ke2 {[%clk 0:00:11]}  Kd5 {[%clk 0:00:16]} 55. Na5 {[%clk 0:00:11]}  Ra3 {[%clk 0:00:16]} 56. Nb7 {[%clk 0:00:12]}  Ra7 {[%clk 0:00:16]} 57. Nd8 {[%clk 0:00:12]}  Rd7 {[%clk 0:00:16]} 0-1


[Site "https://www.chess.com"]

[Event "Titled Tuesday Blitz May 4 2021"]
[White "Guzman Moneo, Alberto"]
[Black "Skatchkov, Pavel"]
[WhiteFideId "2209616"]
[BlackFideId "4121848"]
[WhiteElo "2157"]
[BlackElo "2476"]
[Result "0-1"]
[Round "03"]
[TimeControl "180+1"]
[Date "2021.05.04"]
[WhiteClock "0:00:02"]
[BlackClock "0:01:03"]

1. d4 {[%clk 0:03:00]}  Nf6 {[%clk 0:02:59]} 2. Bf4 {[%clk 0:03:00]}  e6 {[%clk 0:02:58]} 3. e3 {[%clk 0:03:01]}  d5 {[%clk 0:02:58]} 4. Nf3 {[%clk 0:03:00]}  c5 {[%clk 0:02:57]} 5. c3 {[%clk 0:02:59]}  Nc6 {[%clk 0:02:57]} 6. Nbd2 {[%clk 0:02:57]}  Nh5 {[%clk 0:02:57]} 7. Bb5 {[%clk 0:02:45]}  Nxf4 {[%clk 0:02:56]} 8. exf4 {[%clk 0:02:46]}  cxd4 {[%clk 0:02:56]} 9. Nxd4 {[%clk 0:02:45]}  Qc7 {[%clk 0:02:52]} 10. N2f3 {[%clk 0:02:21]}  Bd7 {[%clk 0:02:49]} 11. g3 {[%clk 0:02:06]}  Bc5 {[%clk 0:02:39]} 12. O-O {[%clk 0:01:59]}  O-O {[%clk 0:02:39]} 13. Rc1 {[%clk 0:01:49]}  a6 {[%clk 0:02:35]} 14. Ba4 {[%clk 0:01:39]}  Qb6 {[%clk 0:02:09]} 15. b4 {[%clk 0:01:23]}  Bxd4 {[%clk 0:02:06]} 16. cxd4 {[%clk 0:01:03]}  Qxb4 {[%clk 0:02:03]} 17. Rb1 {[%clk 0:00:59]}  Qa3 {[%clk 0:01:58]} 18. Rxb7 {[%clk 0:00:55]}  Nxd4 {[%clk 0:01:23]} 19. Qxd4 {[%clk 0:00:41]}  Qxa4 {[%clk 0:01:12]} 20. Qe5 {[%clk 0:00:32]}  Bb5 {[%clk 0:01:10]} 21. Rc1 {[%clk 0:00:29]}  Bc4 {[%clk 0:01:11]} 22. Ng5 {[%clk 0:00:24]}  Qc6 {[%clk 0:01:09]} 23. Rc7 {[%clk 0:00:23]}  Qb6 {[%clk 0:01:07]} 24. h4 {[%clk 0:00:18]}  h6 {[%clk 0:01:05]} 25. R7xc4 {[%clk 0:00:07]}  dxc4 {[%clk 0:01:03]} 26. Ne4 {[%clk 0:00:04]}  Rad8 {[%clk 0:01:02]} 27. Rxc4 {[%clk 0:00:02]}  Rd5 {[%clk 0:01:03]} 0-1


[Site "https://www.chess.com"]

[Event "Titled Tuesday Blitz May 4 2021"]
[White "Haessel, Dale R."]
[Black "Gerola, Fausto"]
[WhiteFideId "2012618"]
[BlackFideId "845175"]
[WhiteElo "2167"]
[BlackElo "2166"]
[Result "0-1"]
[Round "03"]
[TimeControl "180+1"]
[Date "2021.05.04"]
[WhiteClock "0:00:01"]
[BlackClock "0:01:18"]

1. d4 {[%clk 0:03:00]}  f5 {[%clk 0:02:59]} 2. g3 {[%clk 0:02:56]}  Nf6 {[%clk 0:02:55]} 3. Bg2 {[%clk 0:02:57]}  g6 {[%clk 0:02:54]} 4. c4 {[%clk 0:02:54]}  Bg7 {[%clk 0:02:54]} 5. Nc3 {[%clk 0:02:53]}  O-O {[%clk 0:02:54]} 6. Nf3 {[%clk 0:02:53]}  d6 {[%clk 0:02:54]} 7. O-O {[%clk 0:02:49]}  Nc6 {[%clk 0:02:54]} 8. d5 {[%clk 0:02:43]}  Ne5 {[%clk 0:02:54]} 9. Nxe5 {[%clk 0:02:44]}  dxe5 {[%clk 0:02:53]} 10. c5 {[%clk 0:02:44]}  e4 {[%clk 0:02:52]} 11. Qb3 {[%clk 0:02:43]}  Kh8 {[%clk 0:02:51]} 12. Rd1 {[%clk 0:02:41]}  e6 {[%clk 0:02:51]} 13. Bf4 {[%clk 0:01:22]}  exd5 {[%clk 0:02:42]} 14. Nxd5 {[%clk 0:01:22]}  Nxd5 {[%clk 0:02:41]} 15. Rxd5 {[%clk 0:01:20]}  Qe7 {[%clk 0:02:42]} 16. Qe3 {[%clk 0:00:43]}  Be6 {[%clk 0:02:39]} 17. Rd2 {[%clk 0:00:41]}  Rad8 {[%clk 0:02:25]} 18. Bg5 {[%clk 0:00:35]}  Bf6 {[%clk 0:02:25]} 19. Rxd8 {[%clk 0:00:30]}  Rxd8 {[%clk 0:02:25]} 20. Qc3 {[%clk 0:00:27]}  Bxc3 {[%clk 0:02:07]} 21. Bxe7 {[%clk 0:00:25]}  Rd7 {[%clk 0:01:56]} 22. bxc3 {[%clk 0:00:22]}  Rxe7 {[%clk 0:01:56]} 23. e3 {[%clk 0:00:20]}  Rd7 {[%clk 0:01:55]} 24. Bf1 {[%clk 0:00:18]}  Rd2 {[%clk 0:01:54]} 25. a4 {[%clk 0:00:16]}  Rc2 {[%clk 0:01:51]} 26. Rb1 {[%clk 0:00:15]}  b6 {[%clk 0:01:50]} 27. cxb6 {[%clk 0:00:14]}  cxb6 {[%clk 0:01:50]} 28. a5 {[%clk 0:00:13]}  Ba2 {[%clk 0:01:36]} 29. Rb4 {[%clk 0:00:11]}  bxa5 {[%clk 0:01:25]} 30. Rb8+ {[%clk 0:00:11]}  Kg7 {[%clk 0:01:26]} 31. Rb7+ {[%clk 0:00:12]}  Kh6 {[%clk 0:01:26]} 32. Rxa7 {[%clk 0:00:13]}  Rc1 {[%clk 0:01:26]} 33. Kg2 {[%clk 0:00:12]}  Rxc3 {[%clk 0:01:24]} 34. Rxa5 {[%clk 0:00:11]}  Bb3 {[%clk 0:01:21]} 35. Ra7 {[%clk 0:00:10]}  Bd1 {[%clk 0:01:21]} 36. h4 {[%clk 0:00:09]}  Bf3+ {[%clk 0:01:21]} 37. Kh2 {[%clk 0:00:04]}  Rc2 {[%clk 0:01:19]} 38. Bb5 {[%clk 0:00:01]}  Rxf2+ {[%clk 0:01:18]} 0-1


[Site "https://www.chess.com"]

[Event "Titled Tuesday Blitz May 4 2021"]
[White "Howell, David W L"]
[Black "Manukyan, Sargis A."]
[WhiteFideId "410608"]
[BlackFideId "13303970"]
[WhiteElo "2643"]
[BlackElo "2187"]
[Result "1-0"]
[Round "03"]
[TimeControl "180+1"]
[Date "2021.05.04"]
[WhiteClock "0:00:13"]
[BlackClock "0:00:06"]

1. b3 {[%clk 0:03:00]}  d5 {[%clk 0:02:57]} 2. Bb2 {[%clk 0:03:01]}  e6 {[%clk 0:02:58]} 3. g3 {[%clk 0:02:59]}  Nf6 {[%clk 0:02:59]} 4. Bg2 {[%clk 0:02:59]}  Be7 {[%clk 0:02:57]} 5. d3 {[%clk 0:02:58]}  O-O {[%clk 0:02:57]} 6. e3 {[%clk 0:02:59]}  b6 {[%clk 0:02:58]} 7. Nd2 {[%clk 0:02:58]}  Bb7 {[%clk 0:02:58]} 8. Ne2 {[%clk 0:02:59]}  Nbd7 {[%clk 0:02:59]} 9. h3 {[%clk 0:02:59]}  c5 {[%clk 0:02:59]} 10. g4 {[%clk 0:02:59]}  Qc7 {[%clk 0:03:00]} 11. Ng3 {[%clk 0:02:59]}  d4 {[%clk 0:02:58]} 12. Bxb7 {[%clk 0:02:50]}  Qxb7 {[%clk 0:02:58]} 13. e4 {[%clk 0:02:51]}  Bd6 {[%clk 0:02:57]} 14. g5 {[%clk 0:02:47]}  Ne8 {[%clk 0:02:50]} 15. h4 {[%clk 0:02:44]}  f5 {[%clk 0:02:49]} 16. gxf6 {[%clk 0:02:42]}  Bxg3 {[%clk 0:02:46]} 17. fxg3 {[%clk 0:02:41]}  Nexf6 {[%clk 0:02:40]} 18. Qe2 {[%clk 0:02:40]}  Ne5 {[%clk 0:02:40]} 19. O-O-O {[%clk 0:02:40]}  Nfg4 {[%clk 0:02:40]} 20. Rdf1 {[%clk 0:02:38]}  Ne3 {[%clk 0:02:37]} 21. Rxf8+ {[%clk 0:02:32]}  Rxf8 {[%clk 0:02:38]} 22. Nf1 {[%clk 0:02:33]}  N5g4 {[%clk 0:02:34]} 23. Nxe3 {[%clk 0:02:28]}  Nxe3 {[%clk 0:02:35]} 24. Kb1 {[%clk 0:02:26]}  Qf7 {[%clk 0:02:35]} 25. Bc1 {[%clk 0:02:26]}  Qf3 {[%clk 0:02:16]} 26. Qxf3 {[%clk 0:01:47]}  Rxf3 {[%clk 0:02:17]} 27. Rg1 {[%clk 0:01:48]}  Ng4 {[%clk 0:01:55]} 28. Bd2 {[%clk 0:01:43]}  Rf2 {[%clk 0:01:54]} 29. Kc1 {[%clk 0:01:40]}  Nh2 {[%clk 0:01:49]} 30. Be1 {[%clk 0:01:38]}  Rf6 {[%clk 0:01:33]} 31. Rh1 {[%clk 0:01:31]}  Ng4 {[%clk 0:01:30]} 32. h5 {[%clk 0:01:29]}  Ne3 {[%clk 0:01:26]} 33. Kd2 {[%clk 0:01:26]}  e5 {[%clk 0:01:23]} 34. Ke2 {[%clk 0:01:22]}  Kf7 {[%clk 0:01:23]} 35. c3 {[%clk 0:01:15]}  Ng4 {[%clk 0:01:16]} 36. Rh4 {[%clk 0:01:12]}  Ne3 {[%clk 0:01:14]} 37. Bd2 {[%clk 0:01:10]}  Nf1 {[%clk 0:01:12]} 38. Be1 {[%clk 0:01:03]}  dxc3 {[%clk 0:01:12]} 39. Bxc3 {[%clk 0:01:04]}  Nxg3+ {[%clk 0:01:11]} 40. Ke3 {[%clk 0:01:02]}  Ke6 {[%clk 0:01:08]} 41. Be1 {[%clk 0:00:59]}  g5 {[%clk 0:00:48]} 42. hxg6 {[%clk 0:00:23]}  Rxg6 {[%clk 0:00:47]} 43. Rh3 {[%clk 0:00:20]}  Nf1+ {[%clk 0:00:41]} 44. Ke2 {[%clk 0:00:16]}  Rg2+ {[%clk 0:00:35]} 45. Kxf1 {[%clk 0:00:16]}  Rxa2 {[%clk 0:00:36]} 46. Rh6+ {[%clk 0:00:14]}  Kd7 {[%clk 0:00:34]} 47. Bc3 {[%clk 0:00:15]}  Ra3 {[%clk 0:00:31]} 48. Bxe5 {[%clk 0:00:15]}  Rxb3 {[%clk 0:00:32]} 49. Ke2 {[%clk 0:00:15]}  a5 {[%clk 0:00:31]} 50. Kd2 {[%clk 0:00:15]}  a4 {[%clk 0:00:30]} 51. Kc2 {[%clk 0:00:16]}  Rb4 {[%clk 0:00:30]} 52. Rxh7+ {[%clk 0:00:15]}  Ke6 {[%clk 0:00:30]} 53. Bc3 {[%clk 0:00:15]}  Rb5 {[%clk 0:00:30]} 54. Ra7 {[%clk 0:00:14]}  Kd6 {[%clk 0:00:26]} 55. Rxa4 {[%clk 0:00:14]}  Kc6 {[%clk 0:00:27]} 56. Ra1 {[%clk 0:00:15]}  c4 {[%clk 0:00:26]} 57. d4 {[%clk 0:00:15]}  Rh5 {[%clk 0:00:27]} 58. d5+ {[%clk 0:00:15]}  Kc5 {[%clk 0:00:27]} 59. Rd1 {[%clk 0:00:14]}  b5 {[%clk 0:00:25]} 60. Bd4+ {[%clk 0:00:14]}  Kd6 {[%clk 0:00:24]} 61. Rb1 {[%clk 0:00:14]}  Rh2+ {[%clk 0:00:23]} 62. Kc3 {[%clk 0:00:15]}  Re2 {[%clk 0:00:21]} 63. e5+ {[%clk 0:00:12]}  Kxd5 {[%clk 0:00:19]} 64. Rxb5+ {[%clk 0:00:13]}  Kc6 {[%clk 0:00:18]} 65. Rc5+ {[%clk 0:00:13]}  Kd7 {[%clk 0:00:18]} 66. Kxc4 {[%clk 0:00:14]}  Ke6 {[%clk 0:00:17]} 67. Rc6+ {[%clk 0:00:14]}  Ke7 {[%clk 0:00:15]} 68. Kd5 {[%clk 0:00:15]}  Ra2 {[%clk 0:00:15]} 69. Rc7+ {[%clk 0:00:14]}  Kd8 {[%clk 0:00:15]} 70. Ra7 {[%clk 0:00:14]}  Rh2 {[%clk 0:00:12]} 71. e6 {[%clk 0:00:14]}  Rd2 {[%clk 0:00:11]} 72. Ra6 {[%clk 0:00:13]}  Ke8 {[%clk 0:00:10]} 73. Ra4 {[%clk 0:00:12]}  Ke7 {[%clk 0:00:07]} 74. Ra7+ {[%clk 0:00:12]}  Ke8 {[%clk 0:00:08]} 75. Ke5 {[%clk 0:00:13]}  Rd1 {[%clk 0:00:06]} 76. Ra8+ {[%clk 0:00:11]}  Ke7 {[%clk 0:00:06]} 77. Bc5+ {[%clk 0:00:12]}  Rd6 {[%clk 0:00:06]} 78. Bxd6# {[%clk 0:00:13]} 1-0


[Site "https://www.chess.com"]

[Event "Titled Tuesday Blitz May 4 2021"]
[White "Iljushina, Olga"]
[Black "Zhurbinsky, David"]
[WhiteFideId "4152280"]
[BlackFideId "2072904"]
[WhiteElo "1967"]
[BlackElo "2477"]
[Result "0-1"]
[Round "03"]
[TimeControl "180+1"]
[Date "2021.05.04"]
[WhiteClock "0:01:04"]
[BlackClock "0:00:41"]

1. d4 {[%clk 0:03:00]}  e5 {[%clk 0:03:00]} 2. d5 {[%clk 0:02:58]}  Nf6 {[%clk 0:02:59]} 3. c4 {[%clk 0:02:57]}  d6 {[%clk 0:03:00]} 4. Nc3 {[%clk 0:02:57]}  Be7 {[%clk 0:03:00]} 5. e4 {[%clk 0:02:57]}  O-O {[%clk 0:03:01]} 6. Bd3 {[%clk 0:02:56]}  a5 {[%clk 0:03:01]} 7. Nge2 {[%clk 0:02:52]}  Na6 {[%clk 0:03:01]} 8. Be3 {[%clk 0:02:47]}  Ng4 {[%clk 0:02:59]} 9. Bd2 {[%clk 0:02:44]}  f5 {[%clk 0:02:58]} 10. exf5 {[%clk 0:02:38]}  Bxf5 {[%clk 0:02:52]} 11. Bxf5 {[%clk 0:02:37]}  Rxf5 {[%clk 0:02:53]} 12. O-O {[%clk 0:02:28]}  Bh4 {[%clk 0:02:25]} 13. Ng3 {[%clk 0:02:20]}  Bxg3 {[%clk 0:01:32]} 14. Qxg4 {[%clk 0:02:17]}  Bf4 {[%clk 0:01:23]} 15. Qxf5 {[%clk 0:02:15]}  Bxd2 {[%clk 0:01:22]} 16. Ne4 {[%clk 0:02:14]}  Bh6 {[%clk 0:01:18]} 17. g4 {[%clk 0:02:05]}  Qh4 {[%clk 0:01:04]} 18. Qh5 {[%clk 0:01:41]}  Qxh5 {[%clk 0:01:02]} 19. gxh5 {[%clk 0:01:41]}  Rf8 {[%clk 0:01:03]} 20. f3 {[%clk 0:01:36]}  Nb4 {[%clk 0:01:01]} 21. a3 {[%clk 0:01:31]}  Nc2 {[%clk 0:01:01]} 22. Rac1 {[%clk 0:01:29]}  Bxc1 {[%clk 0:00:59]} 23. Rxc1 {[%clk 0:01:28]}  Nd4 {[%clk 0:00:59]} 24. c5 {[%clk 0:01:17]}  Ne2+ {[%clk 0:00:59]} 25. Kf2 {[%clk 0:01:17]}  Nxc1 {[%clk 0:01:00]} 26. cxd6 {[%clk 0:01:17]}  cxd6 {[%clk 0:01:01]} 27. Nxd6 {[%clk 0:01:17]}  Nd3+ {[%clk 0:01:00]} 28. Ke3 {[%clk 0:01:17]}  Nxb2 {[%clk 0:01:00]} 29. Nxb7 {[%clk 0:01:15]}  Nc4+ {[%clk 0:00:53]} 30. Ke4 {[%clk 0:01:15]}  Rb8 {[%clk 0:00:51]} 31. Nc5 {[%clk 0:01:12]}  Kf7 {[%clk 0:00:47]} 32. Nd7 {[%clk 0:01:09]}  Rd8 {[%clk 0:00:40]} 33. Nxe5+ {[%clk 0:01:06]}  Nxe5 {[%clk 0:00:41]} 34. Kxe5 {[%clk 0:01:06]}  Ke7 {[%clk 0:00:42]} 35. f4 {[%clk 0:01:04]}  Rd6 {[%clk 0:00:41]} 36. f5 {[%clk 0:01:04]}  Rh6 {[%clk 0:00:41]} 0-1


[Site "https://www.chess.com"]

[Event "Titled Tuesday Blitz May 4 2021"]
[White "Iniyan, P"]
[Black "Piesik, Piotr"]
[WhiteFideId "25002767"]
[BlackFideId "1136194"]
[WhiteElo "2400"]
[BlackElo "2369"]
[Result "1-0"]
[Round "03"]
[TimeControl "180+1"]
[Date "2021.05.04"]
[WhiteClock "0:00:11"]
[BlackClock "0:00:16"]

1. e4 {[%clk 0:03:00]}  g6 {[%clk 0:02:59]} 2. Nf3 {[%clk 0:03:00]}  Bg7 {[%clk 0:02:59]} 3. d4 {[%clk 0:03:00]}  c6 {[%clk 0:02:59]} 4. Nc3 {[%clk 0:03:00]}  d6 {[%clk 0:03:00]} 5. Be2 {[%clk 0:02:57]}  Nf6 {[%clk 0:03:00]} 6. O-O {[%clk 0:02:57]}  O-O {[%clk 0:03:01]} 7. a4 {[%clk 0:02:57]}  Nbd7 {[%clk 0:03:01]} 8. a5 {[%clk 0:02:57]}  e5 {[%clk 0:03:01]} 9. Be3 {[%clk 0:02:50]}  Qe7 {[%clk 0:03:00]} 10. d5 {[%clk 0:02:47]}  cxd5 {[%clk 0:03:00]} 11. Nxd5 {[%clk 0:02:44]}  Nxd5 {[%clk 0:02:59]} 12. Qxd5 {[%clk 0:02:44]}  Nf6 {[%clk 0:02:59]} 13. Qd3 {[%clk 0:02:43]}  Be6 {[%clk 0:02:59]} 14. c4 {[%clk 0:02:43]}  Rac8 {[%clk 0:02:46]} 15. b3 {[%clk 0:02:43]}  a6 {[%clk 0:02:46]} 16. Rfd1 {[%clk 0:02:42]}  Rc6 {[%clk 0:02:46]} 17. Nd2 {[%clk 0:02:37]}  Ng4 {[%clk 0:02:43]} 18. Bxg4 {[%clk 0:02:36]}  Bxg4 {[%clk 0:02:44]} 19. f3 {[%clk 0:02:34]}  Be6 {[%clk 0:02:44]} 20. Nb1 {[%clk 0:02:32]}  f5 {[%clk 0:02:36]} 21. Nc3 {[%clk 0:02:32]}  fxe4 {[%clk 0:02:35]} 22. Nxe4 {[%clk 0:02:28]}  Bf5 {[%clk 0:02:29]} 23. Rd2 {[%clk 0:02:26]}  Qc7 {[%clk 0:02:22]} 24. Bb6 {[%clk 0:02:22]}  Qd7 {[%clk 0:02:16]} 25. Be3 {[%clk 0:02:10]}  Qc7 {[%clk 0:02:15]} 26. Qe2 {[%clk 0:02:10]}  Bxe4 {[%clk 0:02:09]} 27. fxe4 {[%clk 0:02:11]}  Rf7 {[%clk 0:01:51]} 28. Rd5 {[%clk 0:02:09]}  Qe7 {[%clk 0:01:45]} 29. Rad1 {[%clk 0:02:07]}  Bf6 {[%clk 0:01:44]} 30. Qd2 {[%clk 0:02:02]}  Qc7 {[%clk 0:01:34]} 31. Bb6 {[%clk 0:01:21]}  Qc8 {[%clk 0:01:33]} 32. Rxd6 {[%clk 0:01:20]}  Rxd6 {[%clk 0:01:32]} 33. Qxd6 {[%clk 0:01:20]}  Qg4 {[%clk 0:01:33]} 34. Qd3 {[%clk 0:00:59]}  Be7 {[%clk 0:01:22]} 35. h3 {[%clk 0:00:55]}  Qh4 {[%clk 0:01:17]} 36. Qd5 {[%clk 0:00:49]}  Qf4 {[%clk 0:01:09]} 37. Kh1 {[%clk 0:00:47]}  Bh4 {[%clk 0:01:03]} 38. Bg1 {[%clk 0:00:33]}  Bg3 {[%clk 0:00:57]} 39. Rd3 {[%clk 0:00:31]}  Qh4 {[%clk 0:00:48]} 40. Rf3 {[%clk 0:00:24]}  Bf4 {[%clk 0:00:43]} 41. Qe6 {[%clk 0:00:23]}  Kg7 {[%clk 0:00:41]} 42. Bf2 {[%clk 0:00:19]}  Qd8 {[%clk 0:00:38]} 43. g3 {[%clk 0:00:19]}  Qd1+ {[%clk 0:00:36]} 44. Kg2 {[%clk 0:00:19]}  Rf6 {[%clk 0:00:27]} 45. Qe7+ {[%clk 0:00:20]}  Rf7 {[%clk 0:00:27]} 46. Qe6 {[%clk 0:00:20]}  Rf6 {[%clk 0:00:27]} 47. Qd5 {[%clk 0:00:19]}  Qxd5 {[%clk 0:00:22]} 48. exd5 {[%clk 0:00:20]}  Bd2 {[%clk 0:00:21]} 49. Rxf6 {[%clk 0:00:21]}  Kxf6 {[%clk 0:00:22]} 50. Bb6 {[%clk 0:00:20]}  e4 {[%clk 0:00:22]} 51. Kf2 {[%clk 0:00:15]}  Ke5 {[%clk 0:00:22]} 52. Ke2 {[%clk 0:00:16]}  Bh6 {[%clk 0:00:21]} 53. Bc7+ {[%clk 0:00:13]}  Kf6 {[%clk 0:00:18]} 54. Bf4 {[%clk 0:00:11]}  Bf8 {[%clk 0:00:16]} 55. Ke3 {[%clk 0:00:12]}  g5 {[%clk 0:00:16]} 56. Bc7 {[%clk 0:00:11]} 1-0


[Site "https://www.chess.com"]

[Event "Titled Tuesday Blitz May 4 2021"]
[White "Iskusnyh, Sergei"]
[Black "Srisshhhtea"]
[WhiteFideId "4120027"]
[WhiteElo "2492"]
[BlackElo "2372"]
[Result "1-0"]
[Round "03"]
[TimeControl "180+1"]
[Date "2021.05.04"]
[WhiteClock "0:01:00"]
[BlackClock "0:01:20"]

1. d4 {[%clk 0:03:00]}  Nf6 {[%clk 0:02:58]} 2. c4 {[%clk 0:03:00]}  c5 {[%clk 0:02:58]} 3. d5 {[%clk 0:02:59]}  b5 {[%clk 0:02:59]} 4. Qc2 {[%clk 0:02:59]}  bxc4 {[%clk 0:02:57]} 5. e4 {[%clk 0:02:59]}  d6 {[%clk 0:02:57]} 6. Nf3 {[%clk 0:02:59]}  g6 {[%clk 0:02:57]} 7. Be2 {[%clk 0:02:59]}  Bg7 {[%clk 0:02:58]} 8. O-O {[%clk 0:02:59]}  O-O {[%clk 0:02:58]} 9. Na3 {[%clk 0:02:59]}  Nbd7 {[%clk 0:02:51]} 10. Nxc4 {[%clk 0:02:55]}  Nb6 {[%clk 0:02:51]} 11. Bd2 {[%clk 0:02:36]}  Nxc4 {[%clk 0:02:45]} 12. Bxc4 {[%clk 0:02:36]}  Nd7 {[%clk 0:02:45]} 13. Bc3 {[%clk 0:02:29]}  Nb6 {[%clk 0:02:45]} 14. Bb5 {[%clk 0:02:28]}  Bd7 {[%clk 0:02:43]} 15. a4 {[%clk 0:02:16]}  a6 {[%clk 0:02:36]} 16. Be2 {[%clk 0:02:14]}  Qc7 {[%clk 0:02:24]} 17. Rfd1 {[%clk 0:02:09]}  Rfb8 {[%clk 0:02:23]} 18. e5 {[%clk 0:02:06]}  Bf5 {[%clk 0:02:20]} 19. Qd2 {[%clk 0:02:02]}  Be4 {[%clk 0:02:14]} 20. Ng5 {[%clk 0:01:45]}  Bxd5 {[%clk 0:02:09]} 21. a5 {[%clk 0:01:43]}  Nc4 {[%clk 0:01:54]} 22. Qxd5 {[%clk 0:01:41]}  Nxe5 {[%clk 0:01:51]} 23. Bxe5 {[%clk 0:01:40]}  e6 {[%clk 0:01:50]} 24. Qxd6 {[%clk 0:01:40]}  Bxe5 {[%clk 0:01:50]} 25. Qxc7 {[%clk 0:01:36]}  Bxc7 {[%clk 0:01:51]} 26. Rd7 {[%clk 0:01:36]}  Bf4 {[%clk 0:01:42]} 27. Nxf7 {[%clk 0:01:30]}  Rxb2 {[%clk 0:01:42]} 28. Bc4 {[%clk 0:01:26]}  Re8 {[%clk 0:01:29]} 29. g3 {[%clk 0:01:25]}  Bd2 {[%clk 0:01:26]} 30. Nd6 {[%clk 0:01:17]}  Bc3 {[%clk 0:01:22]} 31. Nxe8 {[%clk 0:01:13]}  Bd4 {[%clk 0:01:20]} 32. Rf1 {[%clk 0:01:08]}  Kf8 {[%clk 0:01:19]} 33. Nc7 {[%clk 0:01:07]}  e5 {[%clk 0:01:19]} 34. Ne6+ {[%clk 0:01:00]}  Ke8 {[%clk 0:01:20]} 1-0


[Site "https://www.chess.com"]